bitfinex-derivatives/quotes_SOLF0:USTF0_20250923
["timestamp","ask_amount","ask_price","bid_price","bid_amount"]
[1758642891546,59.58,219.37,219.3,4.1009]
[1758642892535,27.21072814,219.38,219.3,4.1009]
[1758642892847,27.21072814,219.38,219.28,7.43]
[1758642892848,116.8399,219.37,219.28,11.5314]
[1758642893849,7.26,219.35,219.28,4.1014]
[1758642894043,7.26,219.34,219.26,11.2518]
[1758642895045,7.26,219.34,219.26,7.15]
[1758642895242,20.7313002,219.38,219.29,7.15]
[1758642895447,112.74,219.37,219.29,7.15]
[1758642895637,112.74,219.37,219.3,2.01982794]
[1758642896339,112.74,219.37,219.29,7.15]
[1758642896539,112.74,219.37,219.3,4.101]
[1758642897736,116.8398,219.37,219.3,4.101]
[1758642899544,7.26,219.36,219.3,4.101]
[1758642899753,7.26,219.36,219.22,63.8177]
[1758642899754,7.26,219.34,219.25,2.01982794]
[1758642900154,7.26,219.34,219.26,7.15]
[1758642900449,7.26,219.34,219.28,4.1013]
[1758642901039,9.27982794,219.34,219.28,4.1013]
[1758642901451,4.0997,219.38,219.27,2.01982794]
[1758642901652,4.0997,219.38,219.3,7.15]
[1758642901653,7.26,219.38,219.3,7.15]
[1758642901952,119.98,219.38,219.32,2.01982794]
[1758642902152,119.98,219.38,219.33,11.2504]
[1758642902445,7.26,219.37,219.33,11.2504]
[1758642903046,11.3591,219.41,219.32,2.01982794]
[1758642903252,112.72,219.4,219.32,9.16982794]
[1758642903655,112.72,219.4,219.36,7.15]
[1758642903849,7.26,219.41,219.35,9.16982794]
[1758642905056,7.26,219.41,219.38,4.0994]
[1758642905451,7.26,219.41,219.35,9.16982794]
[1758642905651,457.6,219.42,219.36,4.0999]
[1758642906054,464.86,219.42,219.36,4.0999]
[1758642906859,468.9589,219.42,219.36,4.0999]
[1758642907153,464.86,219.42,219.33,4.1003]
[1758642907553,3.15097809,219.41,219.26,63.8064]
[1758642907756,7.26,219.4,219.27,7.15]
[1758642908148,7.26,219.36,219.31,4.1009]
[1758642908351,7.26,219.35,219.27,7.15]
[1758642908953,112.7,219.36,219.3,4.101]
[1758642909151,409.4364051,219.42,219.27,7.15]
[1758642909152,345.6737051,219.42,219.27,7.15]
[1758642909357,120.0,219.41,219.32,7.15]
[1758642910149,120.0,219.41,219.37,4.0996]
[1758642910360,112.74,219.41,219.35,7.15]
[1758642910756,120.0,219.41,219.38,4.0994]
[1758642911360,7.31,219.4,219.36,4.0999]
[1758642911553,7.31,219.4,219.33,7.11]
[1758642912267,120.01,219.41,219.35,4.1001]
[1758642913454,124.1091,219.41,219.33,7.11]
[1758642913658,7.31,219.4,219.26,7.11]
[1758642913857,63.7752,219.37,219.2,63.8241]
[1758642914058,7.31,219.35,219.23,7.11]
[1758642914663,7.31,219.3,219.23,7.11]
[1758642914863,112.92,219.29,219.23,7.11]
[1758642915557,112.92,219.29,219.19,7.11]
[1758642916061,112.92,219.29,219.23,4.1022]
[1758642916263,112.92,219.29,219.19,7.11]
[1758642916858,7.31,219.28,219.21,4.1028]
[1758642918664,11.4116,219.28,219.19,11.2131]
[1758642919564,7.31,219.26,219.19,4.1031]
[1758642922072,7.31,219.26,219.17,4.1035]
[1758642923274,11.412,219.26,219.17,4.1035]
[1758642923775,7.31,219.26,219.15,7.11]
[1758642923970,7.6,219.23,219.15,7.11]
[1758642924171,120.4,219.23,219.15,7.11]
[1758642925276,120.4,219.23,219.18,4.1033]
[1758642925475,7.6,219.22,219.18,4.1033]
[1758642926875,7.6,219.22,219.15,11.2137]
[1758642927872,7.6,219.22,219.17,7.65]
[1758642928080,7.6,219.22,219.14,7.65]
[1758642928669,7.6,219.22,219.18,4.1031]
[1758642929273,7.6,219.22,219.18,11.7531]
[1758642929474,38.4,219.24,219.18,4.1031]
[1758642929777,46.0,219.24,219.18,4.1031]
[1758642929974,7.6,219.24,219.17,7.65]
[1758642930279,99.9129621,219.39,219.16,63.8331]
[1758642930280,7.6,219.32,219.21,10.80097809]
[1758642930881,7.6,219.32,219.23,7.65]
[1758642931274,7.6,219.32,219.25,7.65]
[1758642931675,7.6,219.32,219.27,11.7516]
[1758642931882,7.6,219.32,219.27,7.65]
[1758642932078,7.6,219.32,219.25,7.65]
[1758642932273,7.6,219.34,219.3,4.1011]
[1758642932474,103.36,219.35,219.3,4.1011]
[1758642932674,7.6,219.34,219.3,4.1011]
[1758642933474,103.36,219.35,219.3,4.1011]
[1758642933671,7.6,219.34,219.3,4.1011]
[1758642933874,103.36,219.35,219.3,4.1011]
[1758642934079,103.36,219.35,219.28,4.1014]
[1758642934282,7.6,219.34,219.28,4.1014]
[1758642937681,7.6,219.34,219.26,4.1018]
[1758642937883,7.6,219.34,219.21,3.15097809]
[1758642938384,7.6,219.34,219.2,7.65]
[1758642938787,4.1007,219.32,219.23,4.1022]
[1758642938981,7.6,219.31,219.2,7.65]
[1758642939186,7.6,219.31,219.16,7.65]
[1758642939589,4.1016,219.28,219.19,4.1031]
[1758642939887,7.6,219.27,219.19,4.1031]
[1758642940388,32.94,219.28,219.19,7.65]
[1758642941990,32.94,219.28,219.23,4.1022]
[1758642942192,7.6,219.27,219.19,7.65]
[1758642943487,7.6,219.27,219.22,4.1026]
[1758642943682,7.6,219.27,219.22,11.7526]
[1758642943888,40.54,219.28,219.22,11.7526]
[1758642945593,40.54,219.28,219.23,4.1023]
[1758642945792,7.6,219.28,219.22,7.65]
[1758642945984,9.18283725,219.41,219.22,7.65]
[1758642945985,4.1007,219.32,219.22,7.65]
[1758642946593,53.22,219.33,219.22,7.65]
[1758642946594,7.6,219.3,219.22,7.65]
[1758642946793,7.6,219.32,219.18,10.80097809]
[1758642947284,45.62,219.33,219.18,10.80097809]
[1758642947487,7.6,219.26,219.13,7.65]
[1758642947691,7.6,219.24,219.13,7.65]
[1758642948589,7.6,219.24,219.14,71.4916]
[1758642948785,24.8017,219.27,219.2,4.1028]
[1758642948984,7.6,219.26,219.17,7.65]
[1758642949188,7.6,219.24,219.1,7.65]
[1758642949699,7.6,219.19,219.12,4.1043]
[1758642950302,7.6,219.19,219.1,11.7548]
[1758642950904,39.64,219.19,219.05,7.65]
[1758642951798,4.1036,219.17,219.09,4.1049]
[1758642953007,39.64,219.19,219.04,63.8701]
[1758642953008,11.7032,219.19,219.07,63.8622]
[1758642953206,124.6632,219.19,219.08,7.14]
[1758642953413,54.46,219.19,219.08,7.14]
[1758642953906,54.46,219.19,219.11,4.1046]
[1758642955808,4.1035,219.18,219.11,4.1046]
[1758642957907,7.72,219.18,219.05,7.14]
[1758642958404,7.72,219.18,219.12,4.1044]
[1758642959508,7.72,219.25,219.12,7.14]
[1758642959712,7.72,219.25,219.06,63.8639]
[1758642959713,63.8248,219.2,219.05,7.14]
[1758642960008,7.72,219.19,219.05,7.14]
[1758642960411,7.72,219.14,219.05,7.14]
[1758642960804,7.72,219.14,219.0,7.14]
[1758642961013,10.87097809,219.12,219.0,7.14]
[1758642961511,11.8252,219.09,219.0,7.14]
[1758642961915,4.1054,219.07,219.0,7.14]
[1758642962109,7.72,219.09,219.0,7.14]
[1758642964807,7.72,219.09,219.01,4.1065]
[1758642966113,7.72,219.09,219.02,4.1062]
[1758642966712,7.72,219.09,219.0,7.14]
[1758642968723,7.72,219.09,219.0,9.16289578]
[1758642969514,7.72,219.09,218.97,4.1072]
[1758642969718,7.72,219.09,218.97,6.13009578]
[1758642970313,126.72001751,219.11,218.97,6.13009578]
[1758642970314,7.72,219.06,218.97,6.13009578]
[1758642970620,4.1058,219.05,218.96,9.16289578]
[1758642971818,11.3962,219.03,218.96,7.14]
[1758642972824,11.3962,219.03,218.95,2.02289578]
[1758642973115,109.47,219.03,218.95,2.02289578]
[1758642973316,7.29,219.02,218.92,11.1381]
[1758642973816,7.29,219.0,218.85,63.9254]
[1758642974022,7.29,219.0,218.9,2.02289578]
[1758642974910,4.107,218.99,218.9,6.13149578]
[1758642975115,4.107,218.99,218.9,2.02289578]
[1758642975418,7.29,219.0,218.9,2.02289578]
[1758642976217,7.29,219.0,218.93,2.02289578]
[1758642976723,48.92,219.02,218.88,2.02289578]
[1758642976724,2.02289578,218.97,218.88,2.02289578]
[1758642976922,2.02289578,218.97,218.86,7.03]
[1758642976923,7.29,218.96,218.86,7.03]
[1758642977110,7.29,218.96,218.87,2.02289578]
[1758642978117,11.3975,218.96,218.89,4.1087]
[1758642978325,7.29,218.96,218.89,4.1087]
[1758642978518,7.29,219.07,218.93,2.02289578]
[1758642978715,9.31289578,219.04,218.93,2.02289578]
[1758642979322,7.29,219.04,218.94,2.02289578]
[1758642979524,7.29,219.04,218.97,2.02289578]
[1758642979818,7.29,219.04,218.97,6.13009578]
[1758642980826,7.29,219.04,218.98,4.1069]
[1758642981224,7.29,219.04,219.0,4.1066]
[1758642981416,54.62,219.06,219.0,4.1066]
[1758642982021,7.29,219.08,219.0,4.1066]
[1758642982223,7.29,219.08,218.98,7.03]
[1758642982224,7.29,219.08,219.01,4.1063]
[1758642982424,7.29,219.08,218.98,7.03]
[1758642982627,11.3954,219.08,218.98,7.03]
[1758642982831,11.3954,219.08,219.0,4.1065]
[1758642983019,7.29,219.08,219.0,4.1065]
[1758642983329,7.29,219.08,219.0,2.02289578]
[1758642983632,7.29,219.08,219.01,7.63]
[1758642984533,9.31289578,219.08,218.97,9.65289578]
[1758642985025,9.31289578,219.08,218.97,13.75999578]
[1758642985026,4.1056,219.07,218.97,13.75999578]
[1758642986028,4.1056,219.07,218.98,4.1069]
[1758642986223,9.56289578,219.05,218.97,7.63]
[1758642986428,9.56289578,219.05,218.87,63.9193]
[1758642986429,7.54,219.03,218.93,9.65289578]
[1758642987637,7.54,219.03,218.93,65.92539578]
[1758642987829,2.02289578,219.05,218.97,7.63]
[1758642988029,7.54,219.06,218.97,7.63]
[1758642988833,11.6456,219.06,218.98,4.107]
[1758642989132,7.54,219.06,218.99,2.02289578]
[1758642989326,20.98001751,219.11,219.0,7.63]
[1758642989525,7.54,219.09,219.0,7.63]
[1758642990236,7.54,219.09,219.01,4.1064]
[1758642990931,7.54,219.09,219.02,4.1062]
[1758642991632,2.02289578,219.06,218.94,7.63]
[1758642992025,6.12899578,219.04,218.95,2.02289578]
[1758642992738,6.12899578,219.04,218.94,7.63]
[1758642993031,6.12899578,219.04,218.96,4.1074]
[1758642993840,7.54,219.03,218.96,4.1074]
[1758642997639,7.54,219.03,218.94,9.65289578]
[1758642998138,7.54,219.03,218.96,2.02289578]
[1758642998636,7.54,219.03,218.97,4.1071]
[1758642998938,7.54,219.03,218.94,9.65289578]
[1758642999136,11.6463,219.03,218.95,4.1076]
[1758642999838,4.1065,219.02,218.95,4.1076]
[1758643000143,7.54,219.01,218.94,7.63]
[1758643000540,7.54,219.01,218.94,9.65289578]
[1758643000736,7.54,219.01,218.95,4.1075]
[1758643001043,7.54,219.01,218.89,63.9138]
[1758643001044,7.54,219.01,218.88,7.63]
[1758643001341,9.56289578,218.96,218.88,7.63]
[1758643001740,13.67049578,218.96,218.88,11.7388]
[1758643002844,13.67049578,218.96,218.88,7.63]
[1758643003043,13.67049578,218.96,218.86,4.1093]
[1758643003246,13.67049578,218.96,218.85,2.02289578]
[1758643003740,13.67049578,218.96,218.86,2.02289578]
[1758643004146,2.02289578,218.94,218.85,4.1095]
[1758643004347,2.02289578,218.94,218.84,7.63]
[1758643004348,7.54,218.93,218.84,7.63]
[1758643004846,9.56289578,218.93,218.85,4.1094]
[1758643006642,9.56289578,218.93,218.84,7.63]
[1758643006839,7.54,218.9,218.84,7.63]
[1758643007650,7.54,218.9,218.82,2.02289578]
[1758643008544,11.6488,218.9,218.82,6.13279578]
[1758643009044,11.6488,218.9,218.82,4.1099]
[1758643011248,7.54,218.9,218.81,2.02289578]
[1758643011450,7.54,218.9,218.82,7.63]
[1758643011650,7.54,218.9,218.83,2.02289578]
[1758643012757,7.54,218.9,218.84,4.1096]
[1758643013153,11.5979,218.94,218.84,7.43]
[1758643013449,7.49,218.94,218.87,7.43]
[1758643013650,7.49,218.99,218.89,2.02289578]
[1758643013850,9.51289578,218.99,218.89,2.02289578]
[1758643014050,2.02289578,218.97,218.89,2.02289578]
[1758643014247,11.5976,218.96,218.89,6.13159578]
[1758643014444,7.49,218.94,218.85,2.02289578]
[1758643015351,7.49,218.94,218.85,9.45289578]
[1758643015550,11.5978,218.94,218.87,4.109]
[1758643016753,7.49,218.94,218.88,4.1088]
[1758643018165,7.49,218.94,218.89,4.1086]
[1758643018463,7.49,218.96,218.89,4.1086]
[1758643018660,7.49,218.96,218.88,7.43]
[1758643019665,11.5976,218.96,218.88,7.43]
[1758643019853,13.62049578,218.96,218.88,7.43]
[1758643020259,4.1078,218.95,218.88,7.43]
[1758643021172,4.1078,218.95,218.88,11.5388]
[1758643021974,9.51289578,218.96,218.89,4.1086]
[1758643022573,13.62049578,218.96,218.89,4.1086]
[1758643023879,4.1078,218.95,218.88,7.43]
[1758643024372,9.51289578,218.96,218.88,7.43]
[1758643024874,9.51289578,218.96,218.88,11.5389]
[1758643025675,7.49,218.93,218.86,6.13219578]
[1758643026073,4.1082,218.92,218.86,6.13219578]
[1758643026574,4.1082,218.92,218.86,2.02289578]
[1758643027968,11.5985,218.91,218.86,9.45289578]
[1758643028169,7.49,218.9,218.86,9.45289578]
[1758643028364,7.49,218.9,218.84,2.02289578]
[1758643028566,7.49,218.9,218.83,4.1098]
[1758643029779,11.5987,218.9,218.83,4.1098]
[1758643030178,7.49,218.95,218.82,7.43]
[1758643030373,7.49,218.95,218.84,7.43]
[1758643030767,7.49,218.92,218.84,7.43]
[1758643031476,7.18,218.95,218.87,7.39]
[1758643032873,4.1081,218.93,218.87,7.39]
[1758643033074,7.18,218.95,218.87,7.39]
[1758643035184,21.04195003,218.97,218.89,7.39]
[1758643035378,7.18,218.97,218.89,7.39]
[1758643035573,70.84,218.99,218.89,10.55588789]
[1758643035777,7.18,218.98,218.89,7.39]
[1758643036175,7.18,218.96,218.87,11.4991]
[1758643037282,4.1078,218.95,218.88,4.1089]
[1758643037675,7.18,218.96,218.9,4.1085]
[1758643039085,11.2876,218.96,218.88,4.1089]
[1758643039272,7.18,218.96,218.88,4.1089]
[1758643039477,7.18,218.96,218.87,7.39]
[1758643039679,11.2875,218.96,218.87,7.39]
[1758643039877,7.18,218.96,218.87,7.39]
[1758643040884,4.1078,218.95,218.88,4.1089]
[1758643045486,7.18,218.96,218.88,4.1089]
[1758643045689,113.04,218.98,218.9,7.16]
[1758643045886,7.67,218.97,218.9,7.16]
[1758643046886,11.7777,218.95,218.9,7.16]
[1758643047093,113.04,218.98,218.84,67.09518789]
[1758643047094,7.67,218.97,218.84,7.16]
[1758643047780,4.1078,218.94,218.87,7.16]
[1758643048788,4.1078,218.94,218.88,4.1088]
[1758643049492,4.1075,218.96,218.87,7.16]
[1758643050392,7.67,218.97,218.87,71.0792]
[1758643050587,7.67,219.01,218.9,7.16]
[1758643051487,4.107,218.99,218.93,4.1079]
[1758643052285,11.7766,219.01,218.93,11.2679]
[1758643052480,25.19948625,219.01,218.93,11.2679]
[1758643052689,11.7766,219.01,218.93,11.2679]
[1758643052890,11.7766,219.01,218.94,4.1077]
[1758643054793,7.67,219.01,218.94,4.1077]
[1758643055892,7.67,219.01,218.96,4.1074]
[1758643056094,130.54973266,219.02,218.93,10.32588789]
[1758643056095,112.98,219.02,218.93,10.32588789]
[1758643056296,112.98,219.02,218.94,7.16]
[1758643056496,7.67,219.01,218.94,7.16]
[1758643057803,11.7767,219.01,218.95,4.1076]
[1758643059100,4.1069,218.99,218.94,7.16]
[1758643059401,7.67,218.98,218.94,7.16]
[1758643059901,4.1069,218.99,218.94,7.16]
[1758643060202,7.67,218.98,218.94,7.16]
[1758643061299,11.7769,218.99,218.92,4.1081]
[1758643062001,11.7769,218.99,218.93,4.1079]
[1758643062301,11.7769,218.99,218.93,11.2679]
[1758643063401,7.67,218.99,218.95,7.16]
[1758643063604,112.98,219.02,218.91,7.16]
[1758643064000,4.1066,219.01,218.95,4.1075]
[1758643064201,7.67,219.01,218.91,7.16]
[1758643065801,4.107,218.99,218.93,4.108]
[1758643066002,4.107,218.99,218.91,7.16]
[1758643066202,7.67,219.01,218.91,7.16]
[1758643066403,11.7766,219.01,218.95,4.1075]
[1758643066901,7.67,219.01,218.94,7.16]
[1758643067401,117.0865,219.02,218.96,4.1073]
[1758643067704,124.7565,219.02,218.94,7.16]
[1758643068102,120.65,219.02,218.94,7.16]
[1758643068694,7.67,218.99,218.93,4.1079]
[1758643072109,7.67,218.99,218.94,4.1077]
[1758643072411,7.67,218.99,218.95,7.16]
[1758643072610,7.67,219.01,218.95,7.16]
[1758643073413,7.67,219.01,218.95,11.2675]
[1758643074308,112.98,219.02,218.91,71.0666]
[1758643074612,124.176,219.04,218.93,10.32588789]
[1758643074805,124.176,219.04,218.94,7.16]
[1758643075812,124.176,219.04,218.97,4.1071]
[1758643076114,124.176,219.04,218.95,63.897]
[1758643076115,7.13,219.04,218.95,63.897]
[1758643076305,7.13,219.04,218.96,7.16]
[1758643076505,7.13,219.04,219.0,11.2667]
[1758643077210,56.15,219.06,219.02,7.16]
[1758643077410,49.02,219.06,218.98,7.16]
[1758643077606,49.02,219.06,219.04,4.1058]
[1758643077916,7.13,219.1,219.01,7.16]
[1758643078118,7.13,219.1,218.97,7.16]
[1758643078315,4.1055,219.07,219.0,4.1066]
[1758643078510,7.13,219.09,218.97,7.16]
[1758643079717,70.9961,219.06,218.92,7.16]
[1758643079913,7.13,219.04,218.92,7.16]
[1758643080820,4.1068,219.0,218.93,4.1079]
[1758643081818,4.1068,219.0,218.94,4.1077]
[1758643082020,7.13,219.01,218.92,7.16]
[1758643082407,120.07,219.05,218.96,11.2673]
[1758643082824,120.07,219.05,218.96,7.16]
[1758643084223,7.13,219.02,218.92,7.16]
[1758643085017,4.107,218.99,218.92,11.2681]
[1758643085722,11.237,218.99,218.92,11.2681]
[1758643087922,11.237,218.99,218.93,4.1079]
[1758643091427,7.13,218.99,218.92,9.18435147]
[1758643091627,7.1,219.03,218.94,2.02435147]
[1758643092023,4.1064,219.02,218.95,4.1075]
[1758643092228,4.1064,219.02,218.94,2.02435147]
[1758643092529,7.1,219.07,218.98,7.17]
[1758643093829,11.2055,219.07,219.01,4.1064]
[1758643094425,7.1,219.07,219.03,9.19435147]
[1758643094830,7.1,219.08,219.03,2.02435147]
[1758643095030,7.1,219.06,219.03,2.02435147]
[1758643097031,11.2052,219.08,219.03,9.19435147]
[1758643097227,7.1,219.08,219.03,2.02435147]
[1758643097533,7.1,219.08,219.04,7.17]
[1758643097924,112.9,219.11,219.04,7.17]
[1758643098127,112.9,219.11,219.06,2.02435147]
[1758643098427,112.9,219.11,219.07,7.17]
[1758643098632,120.0,219.11,219.07,7.17]
[1758643099030,120.0,219.11,219.06,6.12975147]
[1758643099230,120.0,219.11,219.07,7.17]
[1758643099428,112.9,219.11,219.07,7.17]
[1758643099633,112.9,219.11,219.06,6.12975147]
[1758643099840,356.5241,219.14,219.07,7.17]
[1758643100429,4.1045,219.13,219.06,2.02435147]
[1758643100630,352.42,219.14,219.04,4.1059]
[1758643100933,352.42,219.14,219.06,2.02435147]
[1758643101338,4.1046,219.12,219.06,2.02435147]
[1758643103239,4.1046,219.12,219.06,9.45435147]
[1758643104538,11.1946,219.12,219.06,9.45435147]
[1758643104841,345.32,219.14,219.06,9.45435147]
[1758643104842,7.09,219.1,219.06,9.45435147]
[1758643105639,7.09,219.1,219.07,7.43]
[1758643107846,11.1943,219.13,219.07,7.43]
[1758643109246,7.09,219.17,219.1,7.43]
[1758643109442,7.09,219.17,219.13,7.43]
[1758643110342,124.0333,219.19,219.13,4.1042]
[1758643110544,119.93,219.19,219.13,11.5342]
[1758643112047,119.93,219.19,219.16,7.43]
[1758643112444,7.09,219.23,219.11,63.8497]
[1758643112640,7.09,219.23,219.19,9.45435147]
[1758643112840,38.36,219.26,219.2,7.43]
[1758643113648,42.462,219.26,219.2,7.43]
[1758643114047,42.462,219.26,219.19,2.02435147]
[1758643114048,38.36,219.26,219.19,2.02435147]
[1758643114546,7.09,219.25,219.19,2.02435147]
[1758643114740,11.1921,219.25,219.19,2.02435147]
[1758643115641,11.1921,219.25,219.19,6.12745147]
[1758643116049,7.09,219.25,219.19,6.12745147]
[1758643116444,38.36,219.26,219.22,2.02435147]
[1758643116638,45.45,219.26,219.22,9.45435147]
[1758643117748,7.09,219.25,219.22,9.45435147]
[1758643118745,7.09,219.25,219.22,2.02435147]
[1758643118951,45.45,219.26,219.22,9.45435147]
[1758643119154,7.09,219.25,219.22,2.02435147]
[1758643120050,45.45,219.26,219.14,84.9]
[1758643120250,7.09,219.25,219.17,2.02435147]
[1758643121752,4.1024,219.24,219.17,2.02435147]
[1758643121951,7.09,219.25,219.17,2.02435147]
[1758643122161,7.09,219.23,219.15,2.02435147]
[1758643123052,11.1924,219.23,219.15,6.12815147]
[1758643123442,7.09,219.23,219.18,2.02435147]
[1758643123640,7.09,219.23,219.19,7.43]
[1758643125252,7.09,219.28,219.24,4.1022]
[1758643125454,13.55288094,219.32,219.24,4.1022]
[1758643125455,7.09,219.32,219.25,7.43]
[1758643125754,7.09,219.35,219.27,2.02435147]
[1758643126754,4.1005,219.34,219.27,2.02435147]
[1758643127954,4.1007,219.33,219.27,2.02435147]
[1758643128153,2.02435147,219.34,219.24,2.02435147]
[1758643128351,7.09,219.33,219.24,2.02435147]
[1758643129954,7.09,219.33,219.24,9.45435147]
[1758643130152,7.09,219.33,219.26,2.02435147]
[1758643130855,11.1906,219.33,219.26,2.02435147]
[1758643132154,11.1906,219.33,219.26,6.12605147]
[1758643134149,7.09,219.33,219.27,7.38]
[1758643134354,4.1002,219.35,219.23,63.815]
[1758643134355,4.1002,219.35,219.29,2.02435147]
[1758643135257,87.19,219.36,219.29,6.12545147]
[1758643136865,87.19,219.36,219.3,4.101]
[1758643142066,7.15,219.39,219.32,2.02435147]
[1758643142266,7.15,219.39,219.33,7.38]
[1758643143462,7.15,219.37,219.29,9.40435147]
[1758643144070,11.2499,219.37,219.29,7.38]
[1758643144462,7.15,219.37,219.29,7.38]
[1758643144770,7.15,219.35,219.29,7.38]
[1758643145767,2.02435147,219.38,219.3,4.101]
[1758643146069,7.15,219.37,219.3,2.02435147]
[1758643146466,7.15,219.37,219.29,7.38]
[1758643147968,4.1003,219.35,219.29,11.4811]
[1758643148169,7.15,219.37,219.29,7.38]
[1758643149873,11.2499,219.37,219.31,4.1008]
[1758643151769,4.1002,219.35,219.29,7.38]
[1758643152068,11.1502,219.35,219.29,7.38]
[1758643152375,13.9393387,219.41,219.28,2.02435147]
[1758643152376,4.1005,219.34,219.28,2.02435147]
[1758643152572,11.1505,219.34,219.26,7.21]
[1758643153772,11.1505,219.34,219.28,4.1013]
[1758643154669,66.92017316,219.4,219.26,7.21]
[1758643154670,7.05,219.35,219.26,7.21]
[1758643155875,7.05,219.35,219.3,4.101]
[1758643156277,4.1,219.36,219.3,4.101]
[1758643156477,7.05,219.35,219.3,4.101]
[1758643157175,4.1,219.36,219.3,4.101]
[1758643157375,7.05,219.35,219.3,4.101]
[1758643157579,4.1,219.36,219.3,4.101]
[1758643158371,7.05,219.35,219.3,4.101]
[1758643158673,7.05,219.35,219.26,7.21]
[1758643158674,7.05,219.34,219.26,7.21]
[1758643159781,7.05,219.34,219.28,4.1014]
[1758643160880,4.1003,219.35,219.29,4.1012]
[1758643161174,7.05,219.34,219.29,4.1012]
[1758643161582,4.1003,219.35,219.29,4.1012]
[1758643161768,7.05,219.4,219.26,63.8064]
[1758643161970,7.05,219.4,219.28,7.21]
[1758643162380,7.05,219.4,219.32,63.7893]
[1758643162682,7.05,219.44,219.34,7.21]
[1758643162883,4.0987,219.43,219.34,7.21]
[1758643163180,7.61,219.42,219.34,7.21]
[1758643163577,7.61,219.4,219.31,7.25]
[1758643165481,7.61,219.4,219.34,4.1002]
[1758643166775,11.7094,219.4,219.34,4.1002]
[1758643167083,7.61,219.4,219.31,7.25]
[1758643168580,7.61,219.36,219.28,7.25]
[1758643169378,7.61,219.36,219.24,10.40277316]
[1758643169579,7.61,219.37,219.24,10.40277316]
[1758643169773,3.15277316,219.38,219.24,10.40277316]
[1758643169977,7.61,219.35,219.24,11.3521]
[1758643170177,7.61,219.35,219.24,7.25]
[1758643170973,4.1004,219.34,219.24,7.25]
[1758643171282,7.61,219.35,219.24,7.25]
[1758643171679,7.61,219.33,219.26,4.1018]
[1758643171877,7.61,219.33,219.24,7.25]
[1758643172083,11.7098,219.37,219.28,4.1014]
[1758643172278,11.7098,219.37,219.28,11.3514]
[1758643172785,3.15277316,219.38,219.28,11.3514]
[1758643172986,7.61,219.37,219.28,11.3514]
[1758643173780,4.1001,219.36,219.28,11.3514]
[1758643173981,7.61,219.37,219.28,7.25]
[1758643174887,7.61,219.37,219.3,4.101]
[1758643176487,7.61,219.37,219.31,4.1008]
[1758643177087,7.61,219.37,219.32,4.1006]
[1758643177288,11.7097,219.38,219.32,4.1006]
[1758643178389,11.7097,219.38,219.3,11.3511]
[1758643178583,11.7097,219.38,219.3,7.25]
[1758643179292,7.61,219.38,219.29,7.25]